Workbook

Sheet Лист1
A1: Школа | F1: Утвердил: | G1: должность
A2: Типовое примерное меню приготавливаемых блюд | G2: фамилия
A3: Возрастная категория | E3: 7-11 лет | G3: дата | J3: 2026
H4: день | I4: месяц | J4: год
A5: Неделя | B5: День недели | C5: Прием пищи | D5: Раздел меню | E5: Блюда | F5: Вес блюда, г | G5: Белки | H5: Жиры | I5: Углеводы | J5: Калорийность | K5: № рецептуры | L5: Цена
A6: 1 | B6: 1 | C6: Завтрак | D6: Блюдо | E6: Бутерброд с маслом сливочным(батон) | F6: 10\25 | G6: 2.18 | H6: 9.25 | I6: 13.88 | J6: 148.55
D7: Блюдо из птицы | E7: Биточек рубленный паровой из курицы с отрубями | F7: 90 | G7: 15.17 | H7: 3.25 | I7: 8.07 | J7: 131.43
D8: Блюдо из крупы | E8: Каша гречневая вязкая | F8: 150 | G8: 8.75 | H8: 6.13 | I8: 47.14 | J8: 267.14
D9: Напиток горячий | E9: Чай с сахаром | F9: 200\15 | G9: 0.05 | I9: 14.93 | J9: 56.11
D10: Хлеб бел. | E10: Хлеб пшеничный витаминизированный | F10: 30 | G10: 2.4 | H10: 0.3 | I10: 14.4 | J10: 72
D11: Хлеб черн. | E11: Хлеб ржаной | F11: 20 | G11: 1.6 | H11: 0.2 | I11: 9.3 | J11: 46
A13: =A6 -> 1 | B13: =B6 -> 1 | C13: Обед | D13: Первое блюдо | E13: Суп картофельный с горохом | F13: 250 | G13: 9.75 | H13: 5.03 | I13: 22.2 | J13: 175.58
D14: 2 блюдо | E14: Фрикадельки в соусе из говядины | F14: 60\50 | G14: 8.68 | H14: 8.49 | I14: 12.09 | J14: 160.03
D15: Гарнир | E15: Макаронные изделия отварные | F15: 150 | G15: 5.63 | H15: 4.89 | I15: 36.44 | J15: 212.33
D16: Напиток | E16: Компот из кураги | F16: 200 | G16: 1.1 | I16: 33.08 | J16: 129.2
D17: Хлеб бел. | E17: Хлеб пшеничный витаминизированный | F17: 40 | G17: 3.2 | H17: 0.4 | I17: 19.2 | J17: 96
D18: Хлеб черн. | E18: Хлеб ржаной | F18: 20 | G18: 1.6 | H18: 0.2 | I18: 9.3 | J18: 46
A21: =A6 -> 1 | B21: =B6 -> 1 | C21: Итого за день:
A22: 1 | B22: 2 | C22: Завтрак | D22: Блюдо из творога | E22: Запеканка из творога со сгущенным молоком | F22: 50\5 | G22: 8.95 | H22: 6.41 | I22: 10.49 | J22: 134.83
D23: Блюдо из крупы | E23: Каша "Дружба " со сливочным маслом | F23: 250/10 | G23: 9.29 | H23: 13.21 | I23: 55.36 | J23: 369.76
D24: Горячий напиток | E24: Чай с сахаром с лимоном | F24: 200\15\7 | G24: 0.11 | I24: 15.18 | J24: 58.28
D25: Хлеб бел. | E25: Хлеб пшеничный витаминизированный | F25: 30 | G25: 2.4 | H25: 0.3 | I25: 14.4 | J25: 7.2
D26: Хлеб черн. | E26: Хлеб ржаной | F26: 20 | G26: 1.6 | H26: 0.2 | I26: 9.3 | J26: 46
A29: =A22 -> 1 | B29: =B22 -> 2 | C29: Обед | D29: Подгарнировка | E29: Свекла отварная с льняным маслом | F29: 70 | G29: 0.96 | H29: 4.96 | I29: 5.47 | J29: 72.75
D30: Первое блюдо | E30: Суп картофельный с макаронными изделиями на бульоне с курой | F30: 250 | G30: 6.63 | H30: 2.87 | I30: 17.63 | J30: 128.24
D31: 2 блюдо | E31: Жаркое по-домашнему со свининой | F31: 50\200 | G31: 15.57 | H31: 29.21 | I31: 26.2 | J31: 435.87
D32: Напиток | E32: Напиток с витаминами "Витошка" | F32: 200 | I32: 19.4 | J32: 78
D33: Хлеб бел. | E33: Хлеб пшеничный витаминизированный | F33: 30 | G33: 3.2 | H33: 0.4 | I33: 19.2 | J33: 96
D34: Хлеб черн. | E34: Хлеб ржаной | F34: 30 | G34: 2.4 | H34: 0.3 | I34: 13.95 | J34: 69
D37: итого | F37: =SUM(F29:F36) -> 580 | G37: 20.22 | H37: 18.31 | I37: 1.63 | J37: 92.79 | L37: 612.15
A38: =A22 -> 1 | B38: =B22 -> 2 | C38: Итого за день: | F38: =F28+F37 -> 580 | G38: =G28+G37 -> 20.22 | H38: =H28+H37 -> 18.31 | I38: =I28+I37 -> 1.63 | J38: =J28+J37 -> 92.79 | L38: =L28+L37 -> 612.15
A39: 1 | B39: 3 | C39: Завтрак | D39: Блюдо из рыбы | E39: Рыба запеченная под молочным соусом с сыром | F39: 90 | G39: 12.87 | H39: 9.21 | I39: 2.66 | J39: 144.98
D40: Гарнир | E40: Рис припущенный с куркумой | F40: 150 | G40: 3.72 | H40: 4.71 | I40: 38.74 | J40: 209.93
D41: Напиток горячий | E41: Чай с сахаром | F41: 200\15 | G41: 0.05 | I41: 14.93 | J41: 56.11
D42: Хлеб бел. | E42: Хлеб пшеничный витаминизированный | F42: 30 | G42: 2.4 | H42: 0.3 | I42: 14.4 | J42: 72
D43: Хлеб черн. | E43: Хлеб ржаной | F43: 30 | G43: 2.4 | H43: 0.3 | I43: 13.95 | J43: 69
D48: итого | F48: =SUM(F39:F47) -> 300 | G48: =SUM(G39:G47) -> 21.44 | H48: 14.57 | I48: 91.03 | J48: =SUM(J39:J47) -> 552.02 | L48: 529.25
A49: =A39 -> 1 | B49: =B39 -> 3 | C49: Обед | D49: Первое блюдо | E49: Борщ с морской капустой, картофелем, сметаной | F49: 250\10 | G49: 1.58 | H49: 5.2 | I49: 11.53 | J49: 100.23
D50: 2 блюдо | E50: Рыба запеченная под молочным соусом с сыром | F50: 70/30 | G50: 14.81 | H50: 9.32 | I50: 2.66 | J50: 153.76
D51: Гарнир | E51: Рис припущенный с куркумой | F51: 150 | G51: 3.72 | H51: 4.71 | I51: 38.74 | J51: 209.93
D52: Напиток | E52: Компот из смеси сухофруктов | F52: 200 | G52: 1.1 | H52: 0.06 | I52: 20.92 | J52: 121.2
D53: Хлеб бел. | E53: Хлеб пшеничный витаминизированный | F53: 40 | G53: 3.2 | H53: 0.4 | I53: 19.2 | J53: 96
D54: Хлеб черн. | E54: Хлеб ржаной | F54: 20 | G54: 1.6 | H54: 0.2 | I54: 9.3 | J54: 46
D57: итого | G57: =SUM(G49:G56) -> 26.01 | H57: =SUM(H49:H56) -> 19.89 | I57: =SUM(I49:I56) -> 102.35 | J57: =SUM(J49:J56) -> 727.12
A58: =A39 -> 1 | B58: =B39 -> 3 | C58: Итого за день: | F58: =F48+F57 -> 300 | G58: =G48+G57 -> 47.45 | H58: =H48+H57 -> 34.46 | I58: =I48+I57 -> 193.38 | J58: =J48+J57 -> 1279.14 | L58: =L48+L57 -> 529.25
A59: 1 | B59: 4 | C59: Завтрак | D59: 2 блюдо | E59: Ежики с рисом | F59: 90 | G59: 11.32 | H59: 25.19 | I59: 12.75 | J59: 321.15
D60: Гарнир | E60: Пюре картофельное | F60: 150 | G60: 3.15 | H60: 5.6 | I60: 20.18 | J60: 148.4
D61: Подгарнировка | E61: Помидор пикантный ( подгарнировка) | F61: 30\3 | G61: 0.18 | H61: 3 | I61: 0.87 | J61: 31.16
D62: Напиток горячий | E62: Чай с лимоном | F62: 200\15\17 | G62: 0.11 | I62: 15.18 | J62: 58.28
D63: Хлеб бел. | E63: Хлеб пшеничный витаминизированный | F63: 30 | G63: 2.4 | H63: 0.3 | I63: 14.4 | J63: 72
D64: Хлеб черн. | E64: Хлеб ржаной | F64: 1900-01-20 | G64: 1.6 | H64: 0.2 | I64: 9.3 | J64: 46
F66: =SUM(F59:F65) -> 290 | G66: =SUM(G59:G65) -> 18.76 | H66: =SUM(H59:H65) -> 34.29 | I66: =SUM(I59:I65) -> 57.5 | J66: =SUM(J59:J65) -> 676.99 | L66: 606.77
A67: =A59 -> 1 | B67: =B59 -> 4 | C67: Обед | D67: Первое блюдо | E67: Рассольник ленинградский со сметаной | F67: 250\10 | G67: 2.1 | H67: 4.56 | I67: 16.36 | J67: 116.91
D68: Блюдо из птицы | E68: Филе цыплят тушенное в сметанном соусе | F68: 70/50 | G68: 20.12 | H68: 9.19 | I68: 4.73 | J68: 195.43
D69: Гарнир | E69: Каша гречневая вязкая | F69: 150 | G69: 4.61 | H69: 5.28 | I69: 24.77 | J69: 158.93
D70: Напиток | E70: Напиток фруктово -ягодный | F70: 200 | G70: 0.32 | H70: 0.08 | I70: 25.91 | J70: 100.09
D71: Хлеб бел. | E71: Хлеб пшеничный витаминизированный | F71: 30 | G71: 2.4 | H71: 0.3 | I71: 14.4 | J71: 72
D72: Хлеб черн. | E72: Хлеб ржаной | F72: 20 | G72: 1.6 | H72: 0.2 | I72: 9.3 | J72: 46
F76: =SUM(F67:F75) -> 400 | G76: =SUM(G67:G75) -> 31.15 | H76: =SUM(H67:H75) -> 19.61 | I76: =SUM(I67:I75) -> 95.47 | J76: =SUM(J67:J75) -> 689.36
A77: =A59 -> 1 | B77: =B59 -> 4 | C77: Итого за день: | F77: =F66+F76 -> 690 | G77: =G66+G76 -> 49.91 | H77: =H66+H76 -> 53.9 | I77: =I66+I76 -> 152.97 | J77: =J66+J76 -> 1366.35 | L77: =L66+L76 -> 606.77
A78: 1 | B78: 5 | C78: Завтрак | D78: Блюдо из пшена | E78: Каша Янтарная (из пшена с яблоками) | F78: 250 | G78: 10.8 | H78: 16 | I78: 51.59 | J78: 384.41
D79: Напиток | E79: Напиток с витаминами "Витошка" | F79: 200 | I79: 19.4 | J79: 78
D80: Хлеб бел. | E80: Хлеб пшеничный витаминизированный | F80: 30 | G80: 2.4 | H80: 0.3 | I80: 14.4 | J80: 72
D81: Выпечка | E81: Коржик молочный | F81: 75 | G81: 5.07 | H81: 8.89 | I81: 52.88 | J81: 298.47
A85: =A78 -> 1 | B85: =B78 -> 5 | C85: Обед | D85: Первое блюдо | E85: Щи из севжей капусты на курином бульоне со сметаной | F85: 250\10 | G85: 6.16 | H85: 4.54 | I85: 9.3 | J85: 106.69
D86: 2 блюдо | E86: Фрикадельки из курицы с отрубями | F86: 100 | G86: 16.71 | H86: 6.79 | I86: 8.67 | J86: 171.96
D87: Гарнир | E87: Макаронные изделия отварные | F87: 150 | G87: 5.63 | H87: 4.89 | I87: 36.44 | J87: 212.33
D88: Напиток | E88: Напиток "Здоровье" | F88: 200 | G88: 0.19 | H88: 0.06 | I88: 26.61 | J88: 99.08
D89: Хлеб бел. | E89: Хлеб пшеничный витаминизированный | F89: 30 | G89: 2.4 | H89: 0.3 | I89: 14.4 | J89: 72
D90: Хлеб черн. | E90: Хлеб ржаной | F90: 20 | G90: 1.6 | H90: 0.2 | I90: 9.3 | J90: 46
G92: 14.36 | H92: 15.12 | I92: 112.91 | J92: =SUM(J85:J91) -> 708.06 | L92: 631.62
A93: =A78 -> 1 | B93: =B78 -> 5 | C93: Итого за день: | G93: =G84+G92 -> 14.36 | H93: =H84+H92 -> 15.12 | I93: =I84+I92 -> 112.91 | J93: =J84+J92 -> 708.06 | L93: =L84+L92 -> 631.62
A94: 2 | B94: 6 | C94: Завтрак | D94: Блюдо | E94: Бутерброд с маслом ( батон) | F94: 10\25 | G94: 2.18 | H94: 9.25 | I94: 13.88 | J94: 148.55
D95: Блюдо из пшена | E95: Каша кукурузная вязкая с маслом сливочным | F95: 250/5 | G95: 9.32 | H95: 12.66 | I95: 57.87 | J95: 385.01
D96: Напиток горячий | E96: Чай с сахаром | F96: 200\15 | G96: 0.05 | I96: 14.93 | J96: 56.11
D97: Блюдо из творога | E97: Творог для детей "Наша Маша" | F97: 100 | G97: 7.6 | H97: 4.2 | I97: 11.7 | J97: 115
D98: Хлеб бел. | E98: Хлеб пшеничный витаминизированный | F98: 40 | G98: 3.2 | H98: 0.4 | I98: 19.2 | J98: 96
D101: итого
A102: =A94 -> 2 | B102: 6 | C102: Обед | D102: Первое блюдо | E102: Борщ на мясном бульоне с морской капустой, картофелем, сметаной | F102: 250\10 | G102: 4.56 | H102: 6.12 | I102: 11.89 | J102: 122.55
D103: 2 блюдо | E103: Плов (со свининой) | F103: 260 | G103: 19.67 | H103: 33.5 | I103: 52.97 | J103: 589.21
D104: Напиток | E104: Компот из смеси сухофруктов | F104: 200 | G104: 1.1 | H104: 0.06 | I104: 20.92 | J104: 121.2
D105: Хлеб бел. | E105: Хлеб пшеничный витаминизированный | F105: 40 | G105: 3.2 | H105: 0.4 | I105: 19.2 | J105: 96
D106: Хлеб черн. | E106: Хлеб ржаной | F106: 30 | G106: 2.4 | H106: 0.3 | I106: 13.95 | J106: 69
G109: 19.93 | H109: 25.03 | I109: 88.11 | J109: 644.9 | L109: 644.9
A110: =A94 -> 2 | B110: 6 | C110: Итого за день: | G110: 19.9 | H110: 25 | I110: 88.1 | J110: 645
A111: 2 | B111: 7 | C111: Завтрак | D111: Подгарнировка | E111: Свекла отварная с льняным маслом | F111: 60 | G111: 0.82 | H111: 4.25 | I111: 4.69 | J111: 62.36
D112: Блюдо из птицы | E112: Грудка цыплят ароматная | F112: 80/50 | G112: 14.8 | H112: 7.93 | I112: 5.5 | J112: 163.44
D113: Гарнир | E113: Макаронные изделия отварные | F113: 150 | G113: 5.63 | H113: 4.89 | I113: 36.44 | J113: 212.33
D114: Напиток | E114: Напиток фруктово-ягодный | F114: 200 | G114: 0.32 | H114: 0.08 | I114: 25.91 | J114: 100.09
D115: Хлеб бел. | E115: Хлеб пшеничный витаминизированный | F115: 20 | G115: 1.6 | H115: 0.2 | I115: 9.6 | J115: 48
D116: Хлеб черн. | E116: Хлеб ржаной | F116: 20 | G116: 1.6 | H116: 0.2 | I116: 9.3 | J116: 46
D118: итого
A119: =A111 -> 2 | B119: =B111 -> 7 | C119: Обед | D119: Первое блюдо | E119: Суп картофельный с горохом | F119: 250 | G119: 5.88 | H119: 4.73 | I119: 19.63 | J119: 146.53
D120: 2 блюдо | E120: Фрикадельки в соусе из говядины | F120: 60\50 | G120: 8.68 | H120: 8.49 | I120: 12.09 | J120: 160.03
D121: Гарнир | E121: Каша гречневая рассыпчатая | F121: 180 | G121: 10.5 | H121: 7.36 | I121: 56.57 | J121: 320.57
D122: Напиток | E122: Напиток вишневый | F122: 200 | G122: 0.32 | H122: 0.08 | I122: 26.88 | J122: 103.51
D123: Хлеб бел. | E123: Хлеб пшеничный витаминизированный | F123: 30 | G123: 2.4 | H123: 0.3 | I123: 14.4 | J123: 72
D124: Хлеб черн. | E124: Хлеб ржаной | F124: 20 | G124: 1.6 | H124: 0.2 | I124: 9.3 | J124: 46
D128: итого | G128: 24.53 | H128: 18.38 | I128: 92.94 | J128: 626.39 | L128: 626.39
A129: =A111 -> 2 | B129: 7 | C129: Итого за день: | G129: 24.5 | H129: 18.4 | I129: 92.9 | J129: 626.39 | L129: 626.39
D130: Блюдо из рыбы | E130: Котлеты рыбные(паровые) с отрубями, соусом молочным (минтай) | F130: 60/30 | G130: 9.47 | H130: 3.97 | I130: 8.23 | J130: 105.24
A131: 2 | B131: 8 | C131: Завтрак | D131: Гарнир | E131: Пюре картофельное | F131: 150 | G131: 3.15 | H131: 5.6 | I131: 20.18 | J131: 148.4
D132: Подгарнировка | E132: Огурчик пикантный (подгарнировка) | F132: 20\2 | G132: 0.14 | H132: 2 | I132: 0.36 | J132: 19.98
D133: Напиток горячий | E133: Чай с сахаром | F133: 200\15 | G133: 0.05 | I133: 14.93 | J133: 56.11
D134: Хлеб бел. | E134: Хлеб пшеничный витаминизированный | F134: 40 | G134: 3.2 | H134: 0.4 | I134: 19.2 | J134: 96
D135: Хлеб черн. | E135: Хлеб ржаной | F135: 30 | G135: 2.4 | H135: 0.3 | I135: 13.95 | J135: 69
D137: итого
A138: =A131 -> 2 | B138: =B131 -> 8 | C138: Обед | D138: Первое блюдо | E138: Щи из севжей капусты с картофелем, сметаной | F138: 250\10 | G138: 1.8 | H138: 5.13 | I138: 8.93 | J138: 89.96
D139: Блюдо из рыбы | E139: Рыба, тушеная в томате с овощами и морской капустой (филе минтая) | F139: 60\50 | G139: 12.01 | H139: 6.07 | I139: 3.65 | J139: 116.98
D140: Гарнир | E140: Пюре картофельное | F140: 150 | G140: 3.15 | H140: 5.6 | I140: 20.18 | J140: 148.4
D141: Напиток | E141: Компот из кураги | F141: 200 | G141: 1.1 | I141: 33.08 | J141: 129.2
D142: Хлеб бел. | E142: Хлеб пшеничный витаминизированный | F142: 40 | G142: 3.2 | H142: 0.4 | I142: 19.2 | J142: 96
D143: Хлеб черн. | E143: Хлеб ржаной | F143: 40 | G143: 3.2 | H143: 0.4 | I143: 18.6 | J143: 92
D147: итого | G147: 17.2 | H147: 11.66 | I147: 74.62 | J147: 488.27
A148: =A131 -> 2 | B148: =B131 -> 8 | C148: Итого за день: | G148: 17.2 | H148: 11.66 | I148: 74.62 | J148: 488.27
A149: 2 | B149: 9 | C149: Завтрак | D149: 2 блюдо | E149: Гуляш из свинины | F149: 50\50 | G149: 12.58 | H149: 23.09 | I149: 3.72 | J149: 272.56
D150: Гарнир | E150: Булгур с овощами | F150: 150 | G150: 5.47 | H150: 2.6 | I150: 33.33 | J150: 169.93
D151: Подгарнировка | E151: Помидор пикантный | F151: 40/4 | G151: 0.24 | H151: 4 | I151: 1.16 | J151: 41.55
D152: Напиток | E152: Чай с сахаром, лимоном | F152: 200/15/7 | G152: 0.11 | I152: 15.18 | J152: 58.28
D153: Хлеб бел. | E153: Хлеб пшеничный витаминизированный | F153: 40 | G153: 3.2 | H153: 0.4 | I153: 19.2 | J153: 96 | M153: 0
D154: Хлеб черн. | E154: Хлеб ржаной | F154: 20 | G154: 1.6 | H154: 0.2 | I154: 9.3 | J154: 46
D156: итого
A157: =A149 -> 2 | B157: =B149 -> 9 | C157: Обед | D157: Первое блюдо | E157: Рассольник домашний со сметаной | F157: 250\10 | G157: 2.34 | H157: 6.01 | I157: 14.59 | J157: 124.46
D158: Блюдо из птицы | E158: Рагу из птицы (филе) | F158: 260 | G158: 19.8 | H158: 9.83 | I158: 24.69 | J158: 283.69
D159: Напиток | E159: Напиток из плодов шиповника | F159: 200 | G159: 0.63 | I159: 18.95 | J159: 75.35
D160: Хлеб бел. | E160: Хлеб пшеничный витаминизированный | F160: 40 | G160: 3.2 | H160: 0.4 | I160: 19.2 | J160: 96
D161: Хлеб черн. | E161: Хлеб ржаной | F161: 30 | G161: 2.4 | H161: 0.3 | I161: 13.95 | J161: 69
D165: итого | G165: 21.71 | H165: 21.72 | I165: 88.45 | J165: 617.14
A166: =A149 -> 2 | B166: =B149 -> 9 | C166: Итого за день: | G166: 21.7 | H166: 21.72 | I166: 88.45 | J166: 617.14
A167: 2 | B167: 10 | C167: Завтрак | D167: Блюдо | E167: Бутерброд с сыром(батон) | F167: 15/25 | G167: 6.15 | H167: 5.1 | I167: 13.8 | J167: 127.9
D168: Блюдо из яиц | E168: Омлет натуральный с маслом сливочным | F168: 150/5 | G168: 15.54 | H168: 20.71 | I168: 2.81 | J168: 260.02
D169: Напиток горячий | E169: Напиток с витаминами Витошка | F169: 200 | I169: 19.4 | J169: 78
D170: Хлеб бел. | E170: Хлеб пшеничный витаминизированный | F170: 20 | G170: 1.6 | H170: 0.2 | I170: 9.6 | J170: 48
D171: Хлеб черн. | E171: Хлеб ржаной | F171: 20 | G171: 1.6 | H171: 0.2 | I171: 9.3 | J171: 46
D172: Фрукт | E172: Фрукты свежие (яблоко) | F172: 120 | G172: 0.48 | I172: 13.56 | J172: 55.2
D174: итого
A175: =A167 -> 2 | B175: =B167 -> 10 | C175: Обед | D175: Первое блюдо | E175: Суп из овощей со сметаной | F175: 250\10 | G175: 1.83 | H175: 4.41 | I175: 10.52 | J175: 90.78
D176: 2 блюдо | E176: Котлеты домашние с отрубями | F176: 90 | G176: 12.55 | H176: 14.95 | I176: 10.59 | J176: 226.79
D177: Гарнир | E177: Макаронные изделия отварные | F177: 180 | G177: 6.76 | H177: 5.87 | I177: 43.73 | J177: 254.8
D178: Напиток | E178: Напиток Здоровье | F178: 200 | G178: 0.25 | H178: 0.04 | I178: 26.82 | J178: 102.49
D179: Хлеб бел. | E179: Хлеб пшеничный витаминизированный | F179: 20 | G179: 1.6 | H179: 0.2 | I179: 9.6 | J179: 48
D180: Хлеб черн. | E180: Хлеб ржаной | F180: 20 | G180: 1.6 | H180: 0.2 | I180: 9.3 | J180: 46
A183: =A167 -> 2 | B183: =B167 -> 10 | C183: Итого за день:
A184: 3 | B184: 1 | C184: Завтрак
D190: итого
A191: =A184 -> 3 | B191: =B184 -> 1 | C191: Обед
D198: итого
A199: =A184 -> 3 | B199: =B184 -> 1 | C199: Итого за день:
A200: 3 | B200: 2 | C200: Завтрак
D206: итого
A207: =A200 -> 3 | B207: =B200 -> 2 | C207: Обед
D213: итого
A214: =A200 -> 3 | B214: =B200 -> 2 | C214: Итого за день:
